[Event "Late-Titled-Tuesday-Blitz-February-20-2024"]
[Site "Chess.com"]
[Date "2024.02.20"]
[Round "10"]
[White "Zhigalko_Sergei"]
[Black "lucliasco"]
[Result "0-1"]
[WhiteElo "2917"]
[BlackElo "2894"]
[TimeControl "180+1"]
[EndTime "15:53:51 PST"]
[Termination "lucliasco won on time"]

1. e4 {[%clk 0:03:00.9]} 1... e5 {[%clk 0:02:59.5]} 2. Nf3 {[%clk 0:03:01.1]}
2... Nc6 {[%clk 0:03:00.4]} 3. Bc4 {[%clk 0:03:00.9]} 3... Nf6 {[%clk
0:03:00.1]} 4. d3 {[%clk 0:03:00.3]} 4... Bc5 {[%clk 0:02:59.6]} 5. O-O {[%clk
0:03:00.2]} 5... a6 {[%clk 0:02:57.5]} 6. c3 {[%clk 0:02:58.4]} 6... d6 {[%clk
0:02:56.7]} 7. Bb3 {[%clk 0:02:58.1]} 7... Ba7 {[%clk 0:02:56.6]} 8. Nbd2 {[%clk
0:02:58.4]} 8... O-O {[%clk 0:02:55]} 9. h3 {[%clk 0:02:58.4]} 9... h6 {[%clk
0:02:54.9]} 10. Re1 {[%clk 0:02:58.8]} 10... Nh5 {[%clk 0:02:54.1]} 11. Nc4
{[%clk 0:02:50]} 11... Qf6 {[%clk 0:02:50.9]} 12. Ne3 {[%clk 0:02:39.3]} 12...
Nf4 {[%clk 0:02:50.8]} 13. Nd5 {[%clk 0:02:38.4]} 13... Nxd5 {[%clk 0:02:48.2]}
14. exd5 {[%clk 0:02:34]} 14... Ne7 {[%clk 0:02:47.1]} 15. d4 {[%clk 0:02:30.2]}
15... exd4 {[%clk 0:02:44.9]} 16. Nxd4 {[%clk 0:02:26.9]} 16... Nf5 {[%clk
0:02:45.5]} 17. Nf3 {[%clk 0:02:23]} 17... Bd7 {[%clk 0:02:42.1]} 18. Qd3 {[%clk
0:02:11.7]} 18... Rae8 {[%clk 0:02:40.9]} 19. Bc2 {[%clk 0:02:09.7]} 19... g6
{[%clk 0:02:37.8]} 20. Bf4 {[%clk 0:02:00.7]} 20... Nh4 {[%clk 0:02:33.6]} 21.
Bxh6 {[%clk 0:01:40.6]} 21... Rxe1+ {[%clk 0:02:24]} 22. Rxe1 {[%clk 0:01:35.6]}
22... Re8 {[%clk 0:02:11.4]} 23. Rxe8+ {[%clk 0:01:30.3]} 23... Bxe8 {[%clk
0:02:12.3]} 24. Bd1 {[%clk 0:01:01.3]} 24... g5 {[%clk 0:01:57.9]} 25. Qe4
{[%clk 0:00:12.4]} 25... Bd7 {[%clk 0:01:49.9]} 26. c4 {[%clk 0:00:07.4]} 26...
Nxf3+ {[%clk 0:01:46.2]} 27. Bxf3 {[%clk 0:00:07.1]} 27... Qxh6 {[%clk
0:01:46.1]} 28. Qe7 {[%clk 0:00:07.7]} 28... Bf5 {[%clk 0:01:38.4]} 29. Qxc7
{[%clk 0:00:07.3]} 29... Qh4 {[%clk 0:01:37.6]} 30. Kh2 {[%clk 0:00:02.2]} 30...
Qxf2 {[%clk 0:01:29.1]} 31. Qd8+ {[%clk 0:00:02.1]} 31... Kh7 {[%clk 0:01:29.2]}
32. Qxg5 {[%clk 0:00:02.1]} 32... Qg1+ {[%clk 0:01:25.5]} 33. Kg3 {[%clk
0:00:02.3]} 33... Bf2+ {[%clk 0:01:26.1]} 34. Kf4 {[%clk 0:00:02.8]} 34... Be3+
{[%clk 0:01:26.8]} 35. Kxf5 {[%clk 0:00:03.4]} 35... Bxg5 {[%clk 0:01:27.7]} 36.
Kxg5 {[%clk 0:00:03.9]} 36... Qe3+ {[%clk 0:01:27.3]} 37. Kh4 {[%clk 0:00:03.3]}
37... Kg7 {[%clk 0:01:28.2]} 38. Be4 {[%clk 0:00:03.9]} 38... Qxe4+ {[%clk
0:01:28]} 0-1

[Event "Late-Titled-Tuesday-Blitz-February-20-2024"]
[Site "Chess.com"]
[Date "2024.02.20"]
[Round "10"]
[White "Genghis_K"]
[Black "mbojan"]
[Result "1-0"]
[WhiteElo "2958"]
[BlackElo "2895"]
[TimeControl "180+1"]
[EndTime "15:53:56 PST"]
[Termination "Genghis_K won on time"]

1. e4 {[%clk 0:02:40.4]} 1... c5 {[%clk 0:02:59.9]} 2. Nf3 {[%clk 0:02:41.1]}
2... e6 {[%clk 0:03:00.5]} 3. c3 {[%clk 0:02:41.3]} 3... d5 {[%clk 0:03:00.8]}
4. exd5 {[%clk 0:02:38.5]} 4... Qxd5 {[%clk 0:03:01.7]} 5. d4 {[%clk 0:02:39]}
5... Nf6 {[%clk 0:03:01.8]} 6. Be3 {[%clk 0:02:37.4]} 6... cxd4 {[%clk
0:03:00.5]} 7. Nxd4 {[%clk 0:02:33.5]} 7... Nc6 {[%clk 0:02:46.7]} 8. Nd2 {[%clk
0:02:28.8]} 8... Nxd4 {[%clk 0:02:41.3]} 9. Bxd4 {[%clk 0:02:28.9]} 9... Bc5
{[%clk 0:02:36.8]} 10. Nb3 {[%clk 0:02:09]} 10... Bxd4 {[%clk 0:02:24.9]} 11.
Qxd4 {[%clk 0:02:09.9]} 11... Bd7 {[%clk 0:02:24.4]} 12. Qxd5 {[%clk 0:02:06.3]}
12... Nxd5 {[%clk 0:02:24.4]} 13. Be2 {[%clk 0:02:06.9]} 13... O-O-O {[%clk
0:02:19.3]} 14. Bf3 {[%clk 0:02:06.2]} 14... Bc6 {[%clk 0:02:19.3]} 15. Nd4
{[%clk 0:02:02.6]} 15... Ne7 {[%clk 0:02:18.1]} 16. Nxc6 {[%clk 0:02:00.8]}
16... Nxc6 {[%clk 0:02:18.1]} 17. Bxc6 {[%clk 0:01:56]} 17... bxc6 {[%clk
0:02:19]} 18. Ke2 {[%clk 0:01:52.2]} 18... Kc7 {[%clk 0:02:19.1]} 19. Rhd1
{[%clk 0:01:52.4]} 19... Rd5 {[%clk 0:02:19.3]} 20. c4 {[%clk 0:01:52.7]} 20...
Re5+ {[%clk 0:01:35.7]} 21. Kd3 {[%clk 0:01:52.4]} 21... Rf5 {[%clk 0:01:20.7]}
22. f3 {[%clk 0:01:49.8]} 22... h5 {[%clk 0:01:20.4]} 23. Kc3 {[%clk 0:01:45.3]}
23... g5 {[%clk 0:01:02.7]} 24. Rd3 {[%clk 0:01:40.4]} 24... g4 {[%clk
0:01:01.4]} 25. Rad1 {[%clk 0:01:40.5]} 25... gxf3 {[%clk 0:01:00.5]} 26. gxf3
{[%clk 0:01:41.1]} 26... a5 {[%clk 0:00:47.6]} 27. b3 {[%clk 0:01:34.1]} 27...
Rg8 {[%clk 0:00:47.2]} 28. a3 {[%clk 0:01:33.3]} 28... Rg2 {[%clk 0:00:45]} 29.
b4 {[%clk 0:01:32.6]} 29... axb4+ {[%clk 0:00:44.3]} 30. axb4 {[%clk 0:01:32.7]}
30... Ra2 {[%clk 0:00:22.4]} 31. Rd7+ {[%clk 0:01:25.6]} 31... Kb6 {[%clk
0:00:06.7]} 32. c5+ {[%clk 0:01:06.7]} 32... Ka6 {[%clk 0:00:03]} 33. Kb3 {[%clk
0:01:07.2]} 1-0

[Event "Late-Titled-Tuesday-Blitz-February-20-2024"]
[Site "Chess.com"]
[Date "2024.02.20"]
[Round "10"]
[White "jefferyx"]
[Black "Zkid"]
[Result "1-0"]
[WhiteElo "3046"]
[BlackElo "2929"]
[TimeControl "180+1"]
[EndTime "15:54:02 PST"]
[Termination "jefferyx won by resignation"]

1. d4 {[%clk 0:02:57.7]} 1... Nf6 {[%clk 0:02:59.8]} 2. c4 {[%clk 0:02:52.3]}
2... c5 {[%clk 0:03:00]} 3. d5 {[%clk 0:02:51.7]} 3... b5 {[%clk 0:03:00.6]} 4.
cxb5 {[%clk 0:02:52.6]} 4... a6 {[%clk 0:03:00.7]} 5. f3 {[%clk 0:02:27.5]} 5...
axb5 {[%clk 0:02:54.1]} 6. e4 {[%clk 0:02:27.1]} 6... e6 {[%clk 0:02:47.7]} 7.
Bxb5 {[%clk 0:01:53.4]} 7... exd5 {[%clk 0:02:47.5]} 8. e5 {[%clk 0:01:51.1]}
8... Qa5+ {[%clk 0:02:31.2]} 9. Nc3 {[%clk 0:01:50.6]} 9... d4 {[%clk
0:02:31.5]} 10. exf6 {[%clk 0:01:50.4]} 10... dxc3 {[%clk 0:02:31]} 11. Qe2+
{[%clk 0:01:49.9]} 11... Kd8 {[%clk 0:02:31.4]} 12. Kf2 {[%clk 0:01:49.8]} 12...
Ba6 {[%clk 0:02:26.1]} 13. Bxa6 {[%clk 0:01:44.3]} 13... Rxa6 {[%clk 0:02:27]}
14. bxc3 {[%clk 0:01:41]} 14... Re6 {[%clk 0:02:22.6]} 15. Qc4 {[%clk
0:01:30.9]} 15... Nc6 {[%clk 0:02:20.9]} 16. Ne2 {[%clk 0:01:28.1]} 16... Ne5
{[%clk 0:02:11.7]} 17. Qd5 {[%clk 0:01:22.2]} 17... gxf6 {[%clk 0:02:10]} 18.
Rb1 {[%clk 0:01:20]} 18... Rd6 {[%clk 0:02:01.7]} 19. Rb8+ {[%clk 0:01:19.5]}
19... Ke7 {[%clk 0:02:01.4]} 20. Qe4 {[%clk 0:01:20.1]} 20... Bg7 {[%clk
0:01:49.6]} 21. Rxh8 {[%clk 0:01:21]} 21... Bxh8 {[%clk 0:01:50.4]} 22. Nf4
{[%clk 0:01:06.2]} 22... Qxa2+ {[%clk 0:01:40]} 23. Kg3 {[%clk 0:01:05.6]} 23...
f5 {[%clk 0:01:28.1]} 24. Qxf5 {[%clk 0:01:05.3]} 24... Ng6 {[%clk 0:01:27.9]}
25. Qxc5 {[%clk 0:01:01.3]} 25... Be5 {[%clk 0:00:56.1]} 26. Re1 {[%clk
0:01:01.1]} 26... Qd5 {[%clk 0:00:52.4]} 27. Ba3 {[%clk 0:00:41.5]} 27... Kf6
{[%clk 0:00:21.1]} 28. Rxe5 {[%clk 0:00:40.7]} 1-0

[Event "Late-Titled-Tuesday-Blitz-February-20-2024"]
[Site "Chess.com"]
[Date "2024.02.20"]
[Round "10"]
[White "JaackCamel"]
[Black "sansanathalia"]
[Result "0-1"]
[WhiteElo "2174"]
[BlackElo "2367"]
[TimeControl "180+1"]
[EndTime "15:54:06 PST"]
[Termination "sansanathalia won by resignation"]

1. d4 {[%clk 0:02:50.6]} 1... Nf6 {[%clk 0:02:59.6]} 2. c4 {[%clk 0:02:50.1]}
2... e6 {[%clk 0:02:59.6]} 3. Nc3 {[%clk 0:02:49.5]} 3... d5 {[%clk 0:02:59.4]}
4. cxd5 {[%clk 0:02:49.2]} 4... Nxd5 {[%clk 0:02:59.7]} 5. e4 {[%clk 0:02:48.7]}
5... Nxc3 {[%clk 0:02:59.7]} 6. bxc3 {[%clk 0:02:48.7]} 6... c5 {[%clk 0:03:00]}
7. Nf3 {[%clk 0:02:48.2]} 7... cxd4 {[%clk 0:03:00.1]} 8. cxd4 {[%clk 0:02:48]}
8... Bb4+ {[%clk 0:02:58.5]} 9. Bd2 {[%clk 0:02:47.6]} 9... Bxd2+ {[%clk
0:02:58.6]} 10. Qxd2 {[%clk 0:02:47.4]} 10... O-O {[%clk 0:02:59.3]} 11. Be2
{[%clk 0:02:39]} 11... b6 {[%clk 0:02:59.1]} 12. O-O {[%clk 0:02:36.4]} 12...
Bb7 {[%clk 0:02:57.1]} 13. Qe3 {[%clk 0:02:34.6]} 13... Nd7 {[%clk 0:02:56.4]}
14. Rfd1 {[%clk 0:02:29.5]} 14... Nf6 {[%clk 0:02:53.3]} 15. Nd2 {[%clk
0:02:28.9]} 15... Qe7 {[%clk 0:02:51.6]} 16. f3 {[%clk 0:02:27.3]} 16... Rfd8
{[%clk 0:02:47.7]} 17. Nc4 {[%clk 0:02:18.4]} 17... Rac8 {[%clk 0:02:30.2]} 18.
Ne5 {[%clk 0:02:16.2]} 18... Qb4 {[%clk 0:02:26.6]} 19. Rab1 {[%clk 0:02:08.3]}
19... Qa4 {[%clk 0:02:24.2]} 20. Qb3 {[%clk 0:02:01.9]} 20... Rxd4 {[%clk
0:02:21.7]} 21. Qxa4 {[%clk 0:01:55.2]} 21... Rxa4 {[%clk 0:02:20.4]} 22. Nd7
{[%clk 0:01:48.1]} 22... Nxd7 {[%clk 0:02:19.1]} 23. Rxd7 {[%clk 0:01:47.1]}
23... Bc6 {[%clk 0:02:14]} 24. Rd2 {[%clk 0:01:33.3]} 24... h6 {[%clk
0:02:00.6]} 25. Rbd1 {[%clk 0:01:28]} 25... Kh7 {[%clk 0:01:54]} 26. Rb1 {[%clk
0:01:12.8]} 26... Ra3 {[%clk 0:01:44.3]} 27. Bd1 {[%clk 0:01:11]} 27... Rc3
{[%clk 0:01:34.6]} 28. Bb3 {[%clk 0:01:10.5]} 28... a5 {[%clk 0:01:24.9]} 29.
Rd6 {[%clk 0:01:02.4]} 29... h5 {[%clk 0:01:11.4]} 30. Bd1 {[%clk 0:01:01.6]}
30... b5 {[%clk 0:00:53]} 31. Be2 {[%clk 0:01:01]} 31... b4 {[%clk 0:00:51.1]}
32. Ba6 {[%clk 0:00:55.1]} 32... Rc7 {[%clk 0:00:47.3]} 33. Rd4 {[%clk
0:00:50.6]} 33... Rc2 {[%clk 0:00:46.3]} 34. e5 {[%clk 0:00:48.2]} 34... Rxa2
{[%clk 0:00:45.5]} 35. Bd3+ {[%clk 0:00:38.5]} 35... g6 {[%clk 0:00:44.5]} 36.
Rc4 {[%clk 0:00:37.4]} 36... Rd2 {[%clk 0:00:42.2]} 37. Be4 {[%clk 0:00:36.5]}
37... Bxe4 {[%clk 0:00:41.4]} 38. Rxe4 {[%clk 0:00:32.1]} 38... Rcc2 {[%clk
0:00:40.8]} 0-1

[Event "Late-Titled-Tuesday-Blitz-February-20-2024"]
[Site "Chess.com"]
[Date "2024.02.20"]
[Round "10"]
[White "stollenmonster"]
[Black "manitodeplomo"]
[Result "1-0"]
[WhiteElo "2863"]
[BlackElo "2661"]
[TimeControl "180+1"]
[EndTime "15:54:18 PST"]
[Termination "stollenmonster won by resignation"]

1. e4 {[%clk 0:03:00.9]} 1... c5 {[%clk 0:02:59.2]} 2. Nf3 {[%clk 0:03:01]} 2...
e6 {[%clk 0:02:59.7]} 3. Be2 {[%clk 0:03:01.1]} 3... a6 {[%clk 0:02:58.8]} 4. c4
{[%clk 0:03:01.5]} 4... Nc6 {[%clk 0:02:57.7]} 5. Nc3 {[%clk 0:03:02]} 5... Qb6
{[%clk 0:02:56.5]} 6. O-O {[%clk 0:03:00.1]} 6... Nf6 {[%clk 0:02:56]} 7. d3
{[%clk 0:03:00.5]} 7... Bd6 {[%clk 0:02:51.9]} 8. Be3 {[%clk 0:02:58.4]} 8...
Ng4 {[%clk 0:02:50.5]} 9. Bc1 {[%clk 0:02:55.3]} 9... Qc7 {[%clk 0:02:50.5]} 10.
h3 {[%clk 0:02:53.6]} 10... Nge5 {[%clk 0:02:50.9]} 11. Nxe5 {[%clk 0:02:53]}
11... Bxe5 {[%clk 0:02:51.8]} 12. f4 {[%clk 0:02:53.1]} 12... Bd4+ {[%clk
0:02:51.1]} 13. Kh1 {[%clk 0:02:53.8]} 13... O-O {[%clk 0:02:51.7]} 14. f5
{[%clk 0:02:52.7]} 14... f6 {[%clk 0:02:52.2]} 15. Bf4 {[%clk 0:02:51]} 15...
Be5 {[%clk 0:02:51]} 16. Be3 {[%clk 0:02:51]} 16... Nd4 {[%clk 0:02:50.8]} 17.
Bg4 {[%clk 0:02:50]} 17... b6 {[%clk 0:02:36.2]} 18. Ne2 {[%clk 0:02:48.5]}
18... Qd6 {[%clk 0:02:33.6]} 19. Nxd4 {[%clk 0:02:45.6]} 19... Bxd4 {[%clk
0:02:29.8]} 20. Bf4 {[%clk 0:02:46]} 20... Be5 {[%clk 0:02:23.3]} 21. Be3 {[%clk
0:02:23]} 21... Bb7 {[%clk 0:02:22.2]} 22. Qe2 {[%clk 0:02:17.1]} 22... Rae8
{[%clk 0:02:19.4]} 23. Rad1 {[%clk 0:02:17.4]} 23... exf5 {[%clk 0:02:15.4]} 24.
Bxf5 {[%clk 0:02:18.3]} 24... g6 {[%clk 0:02:14.5]} 25. Bg4 {[%clk 0:02:18.7]}
25... f5 {[%clk 0:02:14.2]} 26. Bf3 {[%clk 0:02:19.1]} 26... Bd4 {[%clk
0:02:11.8]} 27. Qf2 {[%clk 0:02:01.9]} 27... Bxe3 {[%clk 0:02:00.4]} 28. Qxe3
{[%clk 0:02:01.5]} 28... Qg3 {[%clk 0:01:59.9]} 29. Qe1 {[%clk 0:01:54.8]} 29...
Qxe1 {[%clk 0:01:58.8]} 30. Rfxe1 {[%clk 0:01:54.3]} 30... fxe4 {[%clk
0:01:31.3]} 31. dxe4 {[%clk 0:01:51.9]} 31... Bc6 {[%clk 0:01:25.9]} 32. Rd3
{[%clk 0:01:29.7]} 32... Rf7 {[%clk 0:01:19.6]} 33. e5 {[%clk 0:01:18.6]} 33...
Bxf3 {[%clk 0:01:16.3]} 34. gxf3 {[%clk 0:01:18.5]} 34... Kf8 {[%clk 0:01:10.7]}
35. Kg2 {[%clk 0:01:15.6]} 35... Re6 {[%clk 0:01:08.7]} 36. Kg3 {[%clk
0:01:13.4]} 36... Ke8 {[%clk 0:01:07.5]} 37. f4 {[%clk 0:01:09.6]} 37... g5
{[%clk 0:01:01.5]} 38. fxg5 {[%clk 0:01:07.1]} 38... Rf5 {[%clk 0:01:01.8]} 39.
h4 {[%clk 0:01:07.4]} 39... Rfxe5 {[%clk 0:01:01.5]} 40. Rxe5 {[%clk 0:01:07.5]}
40... Rxe5 {[%clk 0:01:02.4]} 41. Kf4 {[%clk 0:01:06.4]} 41... Re6 {[%clk
0:01:01.1]} 42. Re3 {[%clk 0:01:04.2]} 42... Kf7 {[%clk 0:00:56.6]} 43. Rxe6
{[%clk 0:01:03.1]} 43... Kxe6 {[%clk 0:00:51.1]} 44. Ke4 {[%clk 0:01:03.3]}
44... b5 {[%clk 0:00:46.2]} 45. b3 {[%clk 0:01:03.5]} 45... b4 {[%clk
0:00:32.5]} 46. h5 {[%clk 0:01:03.5]} 46... a5 {[%clk 0:00:31.8]} 47. g6 {[%clk
0:01:03.2]} 47... hxg6 {[%clk 0:00:29.4]} 48. hxg6 {[%clk 0:01:03.7]} 1-0

[Event "Late-Titled-Tuesday-Blitz-February-20-2024"]
[Site "Chess.com"]
[Date "2024.02.20"]
[Round "10"]
[White "thechesscorner64"]
[Black "PawnEatingZombie"]
[Result "1-0"]
[WhiteElo "2490"]
[BlackElo "2208"]
[TimeControl "180+1"]
[EndTime "15:54:26 PST"]
[Termination "thechesscorner64 won on time"]

1. e4 {[%clk 0:03:00.9]} 1... d6 {[%clk 0:02:58.4]} 2. d4 {[%clk 0:03:00.1]}
2... Nf6 {[%clk 0:02:58.5]} 3. Nc3 {[%clk 0:02:59.9]} 3... e5 {[%clk 0:02:58.9]}
4. Nf3 {[%clk 0:02:59.6]} 4... Nbd7 {[%clk 0:02:58.5]} 5. Rg1 {[%clk 0:02:59.3]}
5... h5 {[%clk 0:02:51.9]} 6. Bg5 {[%clk 0:02:57.3]} 6... Be7 {[%clk 0:02:51.3]}
7. Nh4 {[%clk 0:02:52.3]} 7... g6 {[%clk 0:02:45.7]} 8. Nf3 {[%clk 0:02:44.5]}
8... c6 {[%clk 0:02:38.4]} 9. Bc4 {[%clk 0:02:43.4]} 9... b5 {[%clk 0:02:19.5]}
10. Bb3 {[%clk 0:02:43]} 10... b4 {[%clk 0:02:14]} 11. Na4 {[%clk 0:02:40.7]}
11... Nxe4 {[%clk 0:02:10.1]} 12. Bxe7 {[%clk 0:02:37.7]} 12... Qxe7 {[%clk
0:02:10.1]} 13. dxe5 {[%clk 0:02:37.5]} 13... Nxe5 {[%clk 0:02:05.3]} 14. Nxe5
{[%clk 0:02:14.2]} 14... Qxe5 {[%clk 0:02:00.7]} 15. Qe2 {[%clk 0:02:13.9]}
15... O-O {[%clk 0:01:26.8]} 16. O-O-O {[%clk 0:02:13.1]} 16... Qf4+ {[%clk
0:01:26.3]} 17. Kb1 {[%clk 0:02:13.1]} 17... Qxf2 {[%clk 0:01:26.7]} 18. Qxe4
{[%clk 0:02:07.1]} 18... Bf5 {[%clk 0:01:23.9]} 19. Qf3 {[%clk 0:01:55.5]} 19...
Qxf3 {[%clk 0:01:12.6]} 20. gxf3 {[%clk 0:01:54.9]} 20... Rfd8 {[%clk
0:00:56.7]} 21. Kc1 {[%clk 0:01:49.6]} 21... Rab8 {[%clk 0:00:45.7]} 22. c3
{[%clk 0:01:43.6]} 22... a5 {[%clk 0:00:41.7]} 23. Rge1 {[%clk 0:01:42.2]} 23...
Kf8 {[%clk 0:00:40.5]} 24. Rd2 {[%clk 0:01:31.8]} 24... d5 {[%clk 0:00:27.5]}
25. Nc5 {[%clk 0:01:19.3]} 25... bxc3 {[%clk 0:00:25]} 26. bxc3 {[%clk
0:01:18.9]} 26... Re8 {[%clk 0:00:24.6]} 27. Rde2 {[%clk 0:01:10.8]} 27... Rxe2
{[%clk 0:00:17.8]} 28. Rxe2 {[%clk 0:01:11.7]} 28... Rb5 {[%clk 0:00:14.5]} 29.
Na6 {[%clk 0:00:46.9]} 29... a4 {[%clk 0:00:12]} 30. Bc2 {[%clk 0:00:41.6]}
30... Bxc2 {[%clk 0:00:08.5]} 31. Kxc2 {[%clk 0:00:42.5]} 31... a3 {[%clk
0:00:03.6]} 32. Nb4 {[%clk 0:00:30.7]} 32... c5 {[%clk 0:00:02.8]} 33. Nxd5
{[%clk 0:00:31.1]} 33... Rb2+ {[%clk 0:00:03.4]} 34. Kd3 {[%clk 0:00:31.7]} 1-0

[Event "Late-Titled-Tuesday-Blitz-February-20-2024"]
[Site "Chess.com"]
[Date "2024.02.20"]
[Round "10"]
[White "ridnani1"]
[Black "subham777"]
[Result "1-0"]
[WhiteElo "2405"]
[BlackElo "2573"]
[TimeControl "180+1"]
[EndTime "15:54:28 PST"]
[Termination "ridnani1 won by resignation"]

1. e4 {[%clk 0:03:00.9]} 1... e6 {[%clk 0:02:59.2]} 2. d4 {[%clk 0:03:00.6]}
2... d5 {[%clk 0:02:58]} 3. Nd2 {[%clk 0:03:00.9]} 3... c5 {[%clk 0:02:57.6]} 4.
Ngf3 {[%clk 0:02:58.1]} 4... cxd4 {[%clk 0:02:57.3]} 5. exd5 {[%clk 0:02:55.7]}
5... Qxd5 {[%clk 0:02:57.8]} 6. Bc4 {[%clk 0:02:54.7]} 6... Qd7 {[%clk 0:02:57]}
7. O-O {[%clk 0:02:52.6]} 7... Nc6 {[%clk 0:02:57.9]} 8. Nb3 {[%clk 0:02:51.1]}
8... Nf6 {[%clk 0:02:58.8]} 9. Nbxd4 {[%clk 0:02:47.6]} 9... Nxd4 {[%clk
0:02:59.7]} 10. Nxd4 {[%clk 0:02:45.2]} 10... a6 {[%clk 0:03:00]} 11. c3 {[%clk
0:02:41]} 11... Bc5 {[%clk 0:02:59.7]} 12. Bg5 {[%clk 0:02:36.4]} 12... Nd5
{[%clk 0:02:57.7]} 13. Re1 {[%clk 0:02:22.3]} 13... O-O {[%clk 0:02:54.2]} 14.
Qg4 {[%clk 0:02:14.9]} 14... b5 {[%clk 0:02:48.2]} 15. Bxd5 {[%clk 0:01:52.3]}
15... exd5 {[%clk 0:02:39.1]} 16. Qxd7 {[%clk 0:01:53.2]} 16... Bxd7 {[%clk
0:02:39.3]} 17. Be7 {[%clk 0:01:53.7]} 17... Bxe7 {[%clk 0:02:32.5]} 18. Rxe7
{[%clk 0:01:54.6]} 18... Rad8 {[%clk 0:02:29.5]} 19. Rae1 {[%clk 0:01:52.1]}
19... g6 {[%clk 0:02:27.4]} 20. f4 {[%clk 0:01:44.4]} 20... Kg7 {[%clk 0:02:21]}
21. R1e5 {[%clk 0:01:42.5]} 21... Bc8 {[%clk 0:02:10.7]} 22. Kf2 {[%clk
0:01:35.3]} 22... h5 {[%clk 0:02:06.9]} 23. Ra7 {[%clk 0:01:33.4]} 23... Rd6
{[%clk 0:02:04.4]} 24. Ree7 {[%clk 0:01:30.4]} 24... Rf6 {[%clk 0:01:57.1]} 25.
g3 {[%clk 0:01:29.2]} 25... Rd8 {[%clk 0:01:51.7]} 26. Nf3 {[%clk 0:01:22.3]}
26... Be6 {[%clk 0:01:42.6]} 27. Rxa6 {[%clk 0:01:14.2]} 27... Rb8 {[%clk
0:01:38.4]} 28. Ng5 {[%clk 0:00:53.4]} 28... Kf8 {[%clk 0:01:23.1]} 29. Raa7
{[%clk 0:00:53.1]} 29... b4 {[%clk 0:01:18.9]} 30. Nh7+ {[%clk 0:00:52.8]} 30...
Kg7 {[%clk 0:01:17.8]} 31. Nxf6 {[%clk 0:00:52.4]} 31... bxc3 {[%clk 0:01:14.1]}
32. Ne8+ {[%clk 0:00:38.4]} 32... Kf8 {[%clk 0:01:07.8]} 33. bxc3 {[%clk
0:00:36.3]} 33... Rb2+ {[%clk 0:01:03.1]} 34. Ke3 {[%clk 0:00:33.1]} 34... Rc2
{[%clk 0:00:56.7]} 35. Nd6 {[%clk 0:00:31.2]} 35... Rxc3+ {[%clk 0:00:54.7]} 36.
Kd2 {[%clk 0:00:30.9]} 36... Rf3 {[%clk 0:00:53.1]} 37. a4 {[%clk 0:00:23.1]}
37... d4 {[%clk 0:00:46]} 38. a5 {[%clk 0:00:21.9]} 38... Bh3 {[%clk 0:00:32.4]}
39. Rxf7+ {[%clk 0:00:19.1]} 39... Kg8 {[%clk 0:00:32.1]} 40. Ra8+ {[%clk
0:00:18]} 1-0

[Event "Late-Titled-Tuesday-Blitz-February-20-2024"]
[Site "Chess.com"]
[Date "2024.02.20"]
[Round "10"]
[White "MagnusCarlsen"]
[Black "BilodeauA"]
[Result "1-0"]
[WhiteElo "3330"]
[BlackElo "3048"]
[TimeControl "180+1"]
[EndTime "15:54:29 PST"]
[Termination "MagnusCarlsen won by resignation"]

1. Nf3 {[%clk 0:02:45.4]} 1... d5 {[%clk 0:02:44.5]} 2. d3 {[%clk 0:02:45]} 2...
Nc6 {[%clk 0:02:38.4]} 3. Nbd2 {[%clk 0:02:42.2]} 3... e5 {[%clk 0:02:37.8]} 4.
e4 {[%clk 0:02:41.8]} 4... Nf6 {[%clk 0:02:38.5]} 5. Be2 {[%clk 0:02:42.1]} 5...
Bc5 {[%clk 0:02:36.3]} 6. O-O {[%clk 0:02:41.5]} 6... O-O {[%clk 0:02:36.6]} 7.
b3 {[%clk 0:02:39.2]} 7... Re8 {[%clk 0:02:31.2]} 8. Bb2 {[%clk 0:02:39]} 8...
a5 {[%clk 0:02:31.1]} 9. a3 {[%clk 0:02:36.8]} 9... h6 {[%clk 0:02:30.1]} 10. c3
{[%clk 0:02:32]} 10... Bf8 {[%clk 0:02:09.7]} 11. b4 {[%clk 0:02:31]} 11... axb4
{[%clk 0:02:03.6]} 12. axb4 {[%clk 0:02:28.8]} 12... Rxa1 {[%clk 0:02:02.9]} 13.
Qxa1 {[%clk 0:02:29.7]} 13... b5 {[%clk 0:01:52.9]} 14. Re1 {[%clk 0:02:24.2]}
14... Bb7 {[%clk 0:01:52.2]} 15. Bf1 {[%clk 0:02:22.5]} 15... Qd7 {[%clk
0:01:40.9]} 16. h3 {[%clk 0:02:22]} 16... Bd6 {[%clk 0:01:27.4]} 17. exd5 {[%clk
0:02:13.1]} 17... Nxd5 {[%clk 0:01:27.7]} 18. Ne4 {[%clk 0:02:13.7]} 18... Bf8
{[%clk 0:01:23.4]} 19. Qb1 {[%clk 0:02:10.8]} 19... Nf4 {[%clk 0:01:21.4]} 20.
Bc1 {[%clk 0:02:10.5]} 20... Ne6 {[%clk 0:01:18.8]} 21. Be3 {[%clk 0:02:10.4]}
21... f6 {[%clk 0:01:16.5]} 22. Rd1 {[%clk 0:02:01.7]} 22... Ne7 {[%clk
0:01:15.1]} 23. d4 {[%clk 0:01:59.7]} 23... exd4 {[%clk 0:00:55.5]} 24. Nxd4
{[%clk 0:01:58.2]} 24... Nxd4 {[%clk 0:00:54.3]} 25. Bxd4 {[%clk 0:01:52.7]}
25... Qc6 {[%clk 0:00:48.6]} 26. Nc5 {[%clk 0:01:47.3]} 26... Ba8 {[%clk
0:00:48.6]} 27. Qa2+ {[%clk 0:01:45.7]} 27... Nd5 {[%clk 0:00:45.6]} 28. Qa5
{[%clk 0:01:30.7]} 28... Rb8 {[%clk 0:00:40.2]} 29. Na6 {[%clk 0:01:26.8]} 29...
Rb7 {[%clk 0:00:32.5]} 30. Re1 {[%clk 0:01:19.5]} 30... Nf4 {[%clk 0:00:21.3]}
31. Qa2+ {[%clk 0:00:55.6]} 31... Kh8 {[%clk 0:00:20.8]} 32. Qf7 {[%clk
0:00:49.5]} 32... Bd6 {[%clk 0:00:05.9]} 1-0